[Event "Titled Tuesday Blitz July 4 Early 2023"]
[White "Peiris, T G M"]
[Black "Deng, Henry"]
[WhiteFideId "9901310"]
[BlackFideId "30965454"]
[WhiteElo "2242"]
[BlackElo "2497"]
[Result "0-1"]
[Round "2"]
[TimeControl "180+2"]
[Date "2023.07.04"]
[WhiteClock "0:00:03"]
[BlackClock "0:00:10"]
[Board "200"]

1. e4 {[%clk 0:03:00]}  c5 {[%clk 0:02:56]} 2. c3 {[%clk 0:03:00]}  Nf6 {[%clk 0:02:55]} 3. e5 {[%clk 0:03:01]}  Nd5 {[%clk 0:02:54]} 4. d4 {[%clk 0:03:02]}  cxd4 {[%clk 0:02:53]} 5. Nf3 {[%clk 0:03:02]}  d6 {[%clk 0:02:52]} 6. cxd4 {[%clk 0:03:02]}  e6 {[%clk 0:02:52]} 7. Bc4 {[%clk 0:03:01]}  Be7 {[%clk 0:02:50]} 8. O-O {[%clk 0:03:01]}  O-O {[%clk 0:02:50]} 9. Qe2 {[%clk 0:02:59]}  b6 {[%clk 0:02:45]} 10. Nc3 {[%clk 0:02:59]}  Nxc3 {[%clk 0:02:42]} 11. bxc3 {[%clk 0:03:00]}  Bb7 {[%clk 0:02:36]} 12. Bd3 {[%clk 0:02:58]}  Nd7 {[%clk 0:02:32]} 13. Re1 {[%clk 0:02:57]}  dxe5 {[%clk 0:02:32]} 14. Nxe5 {[%clk 0:02:52]}  Nxe5 {[%clk 0:02:31]} 15. Qxe5 {[%clk 0:02:53]}  Rc8 {[%clk 0:02:28]} 16. Bd2 {[%clk 0:02:52]}  Qd5 {[%clk 0:02:29]} 17. Qg3 {[%clk 0:02:31]}  Bf6 {[%clk 0:02:02]} 18. h4 {[%clk 0:02:02]}  Kh8 {[%clk 0:01:53]} 19. Be4 {[%clk 0:01:40]}  Qd7 {[%clk 0:01:51]} 20. Bd3 {[%clk 0:01:33]}  Bd5 {[%clk 0:01:40]} 21. a4 {[%clk 0:01:26]}  Bc4 {[%clk 0:01:32]} 22. Be4 {[%clk 0:01:26]}  e5 {[%clk 0:01:24]} 23. dxe5 {[%clk 0:00:57]}  Bxe5 {[%clk 0:01:23]} 24. Qxe5 {[%clk 0:00:57]}  Qxd2 {[%clk 0:01:24]} 25. Rad1 {[%clk 0:00:53]}  Qh6 {[%clk 0:01:20]} 26. h5 {[%clk 0:00:42]}  Be6 {[%clk 0:01:08]} 27. Bf3 {[%clk 0:00:40]}  Qf6 {[%clk 0:00:44]} 28. Qxf6 {[%clk 0:00:24]}  gxf6 {[%clk 0:00:44]} 29. Re3 {[%clk 0:00:25]}  h6 {[%clk 0:00:43]} 30. Be4 {[%clk 0:00:19]}  Rc5 {[%clk 0:00:37]} 31. Bf3 {[%clk 0:00:15]}  Rfc8 {[%clk 0:00:37]} 32. Rdd3 {[%clk 0:00:12]}  Rc4 {[%clk 0:00:34]} 33. Bd1 {[%clk 0:00:12]}  Bf5 {[%clk 0:00:33]} 34. Rd6 {[%clk 0:00:12]}  Be6 {[%clk 0:00:32]} 35. Rdd3 {[%clk 0:00:12]}  R4c5 {[%clk 0:00:31]} 36. Rf3 {[%clk 0:00:09]}  Kg7 {[%clk 0:00:31]} 37. Rg3+ {[%clk 0:00:09]}  Kf8 {[%clk 0:00:31]} 38. Rdf3 {[%clk 0:00:10]}  Ke7 {[%clk 0:00:31]} 39. Be2 {[%clk 0:00:09]}  Ra5 {[%clk 0:00:27]} 40. Bd1 {[%clk 0:00:08]}  Rg5 {[%clk 0:00:25]} 41. Re3 {[%clk 0:00:07]}  Rxg3 {[%clk 0:00:24]} 42. fxg3 {[%clk 0:00:08]}  Rc4 {[%clk 0:00:23]} 43. Kf2 {[%clk 0:00:08]}  Rc5 {[%clk 0:00:23]} 44. Kf3 {[%clk 0:00:08]}  Kd6 {[%clk 0:00:22]} 45. g4 {[%clk 0:00:09]}  Rc4 {[%clk 0:00:21]} 46. Kg3 {[%clk 0:00:09]}  Rc5 {[%clk 0:00:20]} 47. Rd3+ {[%clk 0:00:08]}  Kc7 {[%clk 0:00:20]} 48. Rf3 {[%clk 0:00:09]}  f5 {[%clk 0:00:19]} 49. gxf5 {[%clk 0:00:09]}  Bxf5 {[%clk 0:00:19]} 50. Kh4 {[%clk 0:00:08]}  Kd8 {[%clk 0:00:16]} 51. g4 {[%clk 0:00:08]}  Be6 {[%clk 0:00:16]} 52. Rf6 {[%clk 0:00:08]}  Rxc3 {[%clk 0:00:16]} 53. Rxh6 {[%clk 0:00:09]}  Rc1 {[%clk 0:00:16]} 54. Bf3 {[%clk 0:00:09]}  Rf1 {[%clk 0:00:16]} 55. Kg3 {[%clk 0:00:09]}  Rg1+ {[%clk 0:00:15]} 56. Kf2 {[%clk 0:00:09]}  Ra1 {[%clk 0:00:14]} 57. Rh8+ {[%clk 0:00:09]}  Ke7 {[%clk 0:00:14]} 58. Rg8 {[%clk 0:00:09]}  f5 {[%clk 0:00:13]} 59. h6 {[%clk 0:00:09]}  Bxg8 {[%clk 0:00:13]} 60. g5 {[%clk 0:00:07]}  Ra2+ {[%clk 0:00:09]} 61. Kg1 {[%clk 0:00:06]}  Bh7 {[%clk 0:00:09]} 62. Bh5 {[%clk 0:00:06]}  Rxa4 {[%clk 0:00:08]} 63. g6 {[%clk 0:00:07]}  Bxg6 {[%clk 0:00:08]} 64. Bxg6 {[%clk 0:00:06]}  Rg4+ {[%clk 0:00:09]} 65. Kf2 {[%clk 0:00:05]}  Rxg6 {[%clk 0:00:10]} 66. h7 {[%clk 0:00:03]}  Rh6 {[%clk 0:00:10]} 0-1


[Site "https://www.chess.com"]

[Event "Titled Tuesday Blitz July 4 Early 2023"]
[White "Shubenkova, Veronika"]
[Black "Warchol, Kamil"]
[WhiteFideId "44124040"]
[BlackFideId "21858241"]
[WhiteElo "2492"]
[BlackElo "2233"]
[Result "1-0"]
[Round "2"]
[TimeControl "180+2"]
[Date "2023.07.04"]
[WhiteClock "0:00:40"]
[BlackClock "0:00:01"]
[Board "202"]

1. e4 {[%clk 0:03:00]}  c5 {[%clk 0:02:58]} 2. Nc3 {[%clk 0:03:00]}  a6 {[%clk 0:02:55]} 3. g3 {[%clk 0:03:01]}  b5 {[%clk 0:02:53]} 4. Bg2 {[%clk 0:03:02]}  Bb7 {[%clk 0:02:53]} 5. d3 {[%clk 0:03:02]}  e6 {[%clk 0:02:52]} 6. f4 {[%clk 0:03:02]}  d5 {[%clk 0:02:38]} 7. e5 {[%clk 0:03:00]}  Ne7 {[%clk 0:02:34]} 8. Nf3 {[%clk 0:02:59]}  Nf5 {[%clk 0:02:32]} 9. g4 {[%clk 0:02:53]}  Nh4 {[%clk 0:02:16]} 10. O-O {[%clk 0:02:52]}  Nxg2 {[%clk 0:02:16]} 11. Kxg2 {[%clk 0:02:52]}  Nc6 {[%clk 0:02:09]} 12. Bd2 {[%clk 0:02:50]}  h5 {[%clk 0:02:04]} 13. h3 {[%clk 0:02:46]}  Nd4 {[%clk 0:01:43]} 14. Rh1 {[%clk 0:02:40]}  Nxf3 {[%clk 0:01:40]} 15. Qxf3 {[%clk 0:02:39]}  Qd7 {[%clk 0:01:28]} 16. Kg3 {[%clk 0:02:20]}  b4 {[%clk 0:01:26]} 17. Ne2 {[%clk 0:02:16]}  d4 {[%clk 0:01:25]} 18. Qf2 {[%clk 0:02:16]}  Bxh1 {[%clk 0:01:23]} 19. Rxh1 {[%clk 0:02:16]}  Bd6 {[%clk 0:01:23]} 20. exd6 {[%clk 0:02:15]}  Qxd6 {[%clk 0:01:23]} 21. Re1 {[%clk 0:02:14]}  hxg4 {[%clk 0:01:17]} 22. hxg4 {[%clk 0:02:13]}  Qe7 {[%clk 0:01:17]} 23. Qg2 {[%clk 0:02:13]}  Qh4+ {[%clk 0:01:13]} 24. Kf3 {[%clk 0:02:12]}  Qh3+ {[%clk 0:00:57]} 25. Ng3 {[%clk 0:02:08]}  Qxg2+ {[%clk 0:00:56]} 26. Kxg2 {[%clk 0:02:09]}  Rh4 {[%clk 0:00:55]} 27. g5 {[%clk 0:02:07]}  O-O-O {[%clk 0:00:47]} 28. Rh1 {[%clk 0:02:03]}  Rxh1 {[%clk 0:00:46]} 29. Kxh1 {[%clk 0:02:00]}  Kc7 {[%clk 0:00:46]} 30. Ne4 {[%clk 0:02:00]}  Kc6 {[%clk 0:00:45]} 31. Kg2 {[%clk 0:02:00]}  Rh8 {[%clk 0:00:45]} 32. Nf2 {[%clk 0:01:59]}  Rh4 {[%clk 0:00:44]} 33. Kg3 {[%clk 0:01:59]}  Rh8 {[%clk 0:00:44]} 34. Ng4 {[%clk 0:01:59]}  Kd5 {[%clk 0:00:41]} 35. c4+ {[%clk 0:01:53]}  bxc3 {[%clk 0:00:39]} 36. bxc3 {[%clk 0:01:53]}  Rb8 {[%clk 0:00:34]} 37. c4+ {[%clk 0:01:50]}  Kd6 {[%clk 0:00:33]} 38. f5 {[%clk 0:01:39]}  Rb2 {[%clk 0:00:24]} 39. Bf4+ {[%clk 0:01:37]}  Ke7 {[%clk 0:00:24]} 40. f6+ {[%clk 0:01:35]}  gxf6 {[%clk 0:00:25]} 41. gxf6+ {[%clk 0:01:35]}  Kd7 {[%clk 0:00:23]} 42. Ne5+ {[%clk 0:01:35]}  Ke8 {[%clk 0:00:24]} 43. Ng4 {[%clk 0:01:31]}  Rxa2 {[%clk 0:00:23]} 44. Bd6 {[%clk 0:01:31]}  Ra3 {[%clk 0:00:22]} 45. Ne5 {[%clk 0:01:30]}  Ra5 {[%clk 0:00:20]} 46. Kf4 {[%clk 0:01:29]}  Ra1 {[%clk 0:00:15]} 47. Bxc5 {[%clk 0:01:28]}  Rf1+ {[%clk 0:00:15]} 48. Nf3 {[%clk 0:01:28]}  a5 {[%clk 0:00:14]} 49. Bxd4 {[%clk 0:01:28]}  a4 {[%clk 0:00:14]} 50. Ke3 {[%clk 0:01:25]}  a3 {[%clk 0:00:15]} 51. Nd2 {[%clk 0:01:25]}  Re1+ {[%clk 0:00:12]} 52. Kf2 {[%clk 0:01:25]}  Rd1 {[%clk 0:00:09]} 53. Ke2 {[%clk 0:01:24]}  Rh1 {[%clk 0:00:09]} 54. Bc3 {[%clk 0:01:17]}  Kd7 {[%clk 0:00:08]} 55. d4 {[%clk 0:01:16]}  Kc6 {[%clk 0:00:08]} 56. Nb3 {[%clk 0:01:11]}  Rh3 {[%clk 0:00:08]} 57. Kd2 {[%clk 0:01:10]}  Rh2+ {[%clk 0:00:08]} 58. Kc1 {[%clk 0:01:10]}  Rh3 {[%clk 0:00:07]} 59. Kc2 {[%clk 0:01:10]}  Rf3 {[%clk 0:00:06]} 60. Nd2 {[%clk 0:01:07]}  Rh3 {[%clk 0:00:05]} 61. Ne4 {[%clk 0:00:58]}  a2 {[%clk 0:00:05]} 62. Kb2 {[%clk 0:00:57]}  Re3 {[%clk 0:00:04]} 63. Ng5 {[%clk 0:00:41]}  Rxc3 {[%clk 0:00:04]} 64. Nxf7 {[%clk 0:00:40]}  Rxc4 {[%clk 0:00:01]} 65. Ne5+ {[%clk 0:00:40]}  Kd5 {[%clk 0:00:01]} 66. Nxc4 {[%clk 0:00:40]}  Kxc4 {[%clk 0:00:02]} 67. f7 {[%clk 0:00:40]}  Kxd4 {[%clk 0:00:01]} 68. f8=Q {[%clk 0:00:40]} 1-0


[Site "https://www.chess.com"]

[Event "Titled Tuesday Blitz July 4 Early 2023"]
[White "Fantastic_Power"]
[Black "Sariego Figueredo, Wilfredo"]
[BlackFideId "3500080"]
[WhiteElo "2490"]
[BlackElo "2215"]
[Result "1-0"]
[Round "2"]
[TimeControl "180+2"]
[Date "2023.07.04"]
[WhiteClock "0:00:41"]
[BlackClock "0:00:31"]
[Board "203"]

1. d4 {[%clk 0:03:00]}  d5 {[%clk 0:02:56]} 2. c4 {[%clk 0:03:00]}  c6 {[%clk 0:02:55]} 3. Nf3 {[%clk 0:02:59]}  Nf6 {[%clk 0:02:54]} 4. Nbd2 {[%clk 0:02:54]}  Bf5 {[%clk 0:02:47]} 5. Qb3 {[%clk 0:02:48]}  Qb6 {[%clk 0:02:42]} 6. c5 {[%clk 0:02:45]}  Qc7 {[%clk 0:02:39]} 7. Nh4 {[%clk 0:02:37]}  Bg6 {[%clk 0:02:37]} 8. Ndf3 {[%clk 0:02:33]}  Nbd7 {[%clk 0:02:35]} 9. g3 {[%clk 0:02:20]}  e6 {[%clk 0:02:12]} 10. Bf4 {[%clk 0:02:17]}  Qc8 {[%clk 0:02:07]} 11. Bg2 {[%clk 0:02:09]}  Be4 {[%clk 0:01:58]} 12. O-O {[%clk 0:02:04]}  h6 {[%clk 0:01:55]} 13. Ne5 {[%clk 0:01:32]}  g5 {[%clk 0:01:52]} 14. Nxd7 {[%clk 0:01:28]}  Qxd7 {[%clk 0:01:50]} 15. Be5 {[%clk 0:01:27]}  Bxg2 {[%clk 0:01:44]} 16. Nxg2 {[%clk 0:01:28]}  Bg7 {[%clk 0:01:44]} 17. Qf3 {[%clk 0:01:15]}  Qe7 {[%clk 0:01:27]} 18. b4 {[%clk 0:01:04]}  Rg8 {[%clk 0:01:16]} 19. b5 {[%clk 0:01:03]}  cxb5 {[%clk 0:01:10]} 20. Rfb1 {[%clk 0:00:59]}  Qd7 {[%clk 0:01:03]} 21. Bxf6 {[%clk 0:00:54]}  Bxf6 {[%clk 0:01:02]} 22. Qxf6 {[%clk 0:00:55]}  h5 {[%clk 0:01:01]} 23. Ne3 {[%clk 0:00:48]}  a5 {[%clk 0:00:47]} 24. Qe5 {[%clk 0:00:46]}  h4 {[%clk 0:00:41]} 25. Nf5 {[%clk 0:00:44]}  Kf8 {[%clk 0:00:38]} 26. Qd6+ {[%clk 0:00:40]}  Qxd6 {[%clk 0:00:31]} 27. Nxd6 {[%clk 0:00:41]} 1-0


[Site "https://www.chess.com"]

[Event "Titled Tuesday Blitz July 4 Early 2023"]
[White "Postlmayer, Jakob"]
[Black "Cueto, Jonny"]
[WhiteFideId "1643622"]
[BlackFideId "3300145"]
[WhiteElo "2487"]
[BlackElo "2206"]
[Result "1-0"]
[Round "2"]
[TimeControl "180+2"]
[Date "2023.07.04"]
[WhiteClock "0:00:02"]
[BlackClock "0:00:00"]
[Board "204"]

1. e4 {[%clk 0:03:00]}  e6 {[%clk 0:02:48]} 2. d4 {[%clk 0:02:59]}  d5 {[%clk 0:02:49]} 3. Nc3 {[%clk 0:03:00]}  Nf6 {[%clk 0:02:49]} 4. e5 {[%clk 0:03:00]}  Nfd7 {[%clk 0:02:49]} 5. f4 {[%clk 0:03:00]}  c5 {[%clk 0:02:50]} 6. Nf3 {[%clk 0:03:00]}  Nc6 {[%clk 0:02:51]} 7. Be3 {[%clk 0:02:59]}  Be7 {[%clk 0:02:50]} 8. Qd2 {[%clk 0:02:59]}  O-O {[%clk 0:02:50]} 9. dxc5 {[%clk 0:03:00]}  Nxc5 {[%clk 0:02:48]} 10. O-O-O {[%clk 0:02:59]}  a6 {[%clk 0:02:48]} 11. Kb1 {[%clk 0:02:59]}  b5 {[%clk 0:02:48]} 12. h4 {[%clk 0:02:59]}  b4 {[%clk 0:02:47]} 13. Ne2 {[%clk 0:02:56]}  Ne4 {[%clk 0:02:47]} 14. Qe1 {[%clk 0:02:56]}  a5 {[%clk 0:02:47]} 15. Ned4 {[%clk 0:02:53]}  Bd7 {[%clk 0:02:44]} 16. Nxc6 {[%clk 0:02:49]}  Bxc6 {[%clk 0:02:45]} 17. Nd4 {[%clk 0:02:49]}  Qd7 {[%clk 0:02:33]} 18. Bd3 {[%clk 0:02:46]}  a4 {[%clk 0:02:30]} 19. Bxe4 {[%clk 0:02:19]}  dxe4 {[%clk 0:02:29]} 20. Nf5 {[%clk 0:02:16]}  Qb7 {[%clk 0:02:28]} 21. Nxe7+ {[%clk 0:02:15]}  Qxe7 {[%clk 0:02:29]} 22. h5 {[%clk 0:02:10]}  b3 {[%clk 0:02:25]} 23. Qf2 {[%clk 0:01:54]}  bxa2+ {[%clk 0:02:21]} 24. Ka1 {[%clk 0:01:52]}  a3 {[%clk 0:02:00]} 25. b3 {[%clk 0:01:49]}  Rfc8 {[%clk 0:01:48]} 26. h6 {[%clk 0:01:44]}  g6 {[%clk 0:01:44]} 27. Bc5 {[%clk 0:01:40]}  Qc7 {[%clk 0:00:59]} 28. Qh4 {[%clk 0:01:25]}  f5 {[%clk 0:00:59]} 29. Qf6 {[%clk 0:01:12]}  Qf7 {[%clk 0:00:47]} 30. Qg5 {[%clk 0:00:47]}  Bd5 {[%clk 0:00:46]} 31. b4 {[%clk 0:00:45]}  Qb7 {[%clk 0:00:28]} 32. Qf6 {[%clk 0:00:36]}  Rc7 {[%clk 0:00:19]} 33. c4 {[%clk 0:00:22]}  Rf7 {[%clk 0:00:19]} 34. Qg5 {[%clk 0:00:19]}  Rc8 {[%clk 0:00:16]} 35. cxd5 {[%clk 0:00:10]}  Rfc7 {[%clk 0:00:08]} 36. Rd2 {[%clk 0:00:06]}  Qb5 {[%clk 0:00:02]} 37. dxe6 {[%clk 0:00:03]}  Qc4 {[%clk 0:00:00]} 38. Rd8+ {[%clk 0:00:02]} 1-0


[Site "https://www.chess.com"]

[Event "Titled Tuesday Blitz July 4 Early 2023"]
[White "Ivanova, Karina"]
[Black "Herzog2012"]
[WhiteFideId "24139750"]
[WhiteElo "2205"]
[BlackElo "2485"]
[Result "0-1"]
[Round "2"]
[TimeControl "180+2"]
[Date "2023.07.04"]
[WhiteClock "0:02:13"]
[BlackClock "0:02:19"]
[Board "205"]

1. Nf3 {[%clk 0:02:58]}  Nf6 {[%clk 0:02:59]} 2. g3 {[%clk 0:02:55]}  b5 {[%clk 0:02:55]} 3. Bg2 {[%clk 0:02:52]}  Bb7 {[%clk 0:02:55]} 4. d4 {[%clk 0:02:51]}  e6 {[%clk 0:02:54]} 5. a4 {[%clk 0:02:49]}  a6 {[%clk 0:02:53]} 6. O-O {[%clk 0:02:43]}  c5 {[%clk 0:02:51]} 7. Bg5 {[%clk 0:02:33]}  h6 {[%clk 0:02:40]} 8. Bf4 {[%clk 0:02:28]}  Be7 {[%clk 0:02:32]} 9. dxc5 {[%clk 0:02:26]}  Bxc5 {[%clk 0:02:28]} 10. Bd6 {[%clk 0:02:25]}  Qb6 {[%clk 0:02:24]} 11. a5 {[%clk 0:02:18]}  Qxd6 {[%clk 0:02:20]} 12. Qxd6 {[%clk 0:02:16]}  Bxd6 {[%clk 0:02:21]} 13. Nc3 {[%clk 0:02:13]}  Bb4 {[%clk 0:02:19]} 0-1


[Site "https://www.chess.com"]

[Event "Titled Tuesday Blitz July 4 Early 2023"]
[White "Gheorghiu, Calin"]
[Black "Fudalej, Michal"]
[WhiteFideId "1200305"]
[BlackFideId "1118781"]
[WhiteElo "2484"]
[BlackElo "2204"]
[Result "1-0"]
[Round "2"]
[TimeControl "180+2"]
[Date "2023.07.04"]
[WhiteClock "0:00:32"]
[BlackClock "0:00:00"]
[Board "206"]

1. e4 {[%clk 0:03:00]}  c6 {[%clk 0:03:00]} 2. Nf3 {[%clk 0:03:00]}  d5 {[%clk 0:03:00]} 3. Nc3 {[%clk 0:03:01]}  Bg4 {[%clk 0:03:00]} 4. h3 {[%clk 0:03:01]}  Bxf3 {[%clk 0:03:00]} 5. Qxf3 {[%clk 0:03:01]}  Nf6 {[%clk 0:03:01]} 6. e5 {[%clk 0:02:53]}  Nfd7 {[%clk 0:03:01]} 7. d4 {[%clk 0:02:53]}  e6 {[%clk 0:03:01]} 8. Bf4 {[%clk 0:02:30]}  c5 {[%clk 0:03:01]} 9. dxc5 {[%clk 0:02:27]}  Nc6 {[%clk 0:02:59]} 10. Qg3 {[%clk 0:02:26]}  Qa5 {[%clk 0:02:46]} 11. O-O-O {[%clk 0:02:15]}  Nxc5 {[%clk 0:02:03]} 12. Kb1 {[%clk 0:02:12]}  a6 {[%clk 0:01:56]} 13. h4 {[%clk 0:01:55]}  b5 {[%clk 0:01:36]} 14. h5 {[%clk 0:00:55]}  b4 {[%clk 0:01:36]} 15. Ne2 {[%clk 0:00:55]}  Ne4 {[%clk 0:01:30]} 16. Qf3 {[%clk 0:00:46]}  Bc5 {[%clk 0:01:29]} 17. Be3 {[%clk 0:00:44]}  Nxe5 {[%clk 0:01:19]} 18. Qf4 {[%clk 0:00:45]}  Bxe3 {[%clk 0:01:09]} 19. Qxe5 {[%clk 0:00:44]}  Bh6 {[%clk 0:00:35]} 20. Qd4 {[%clk 0:00:38]}  O-O {[%clk 0:00:28]} 21. f3 {[%clk 0:00:38]}  Nd6 {[%clk 0:00:21]} 22. g4 {[%clk 0:00:37]}  Rfc8 {[%clk 0:00:21]} 23. g5 {[%clk 0:00:37]}  Bxg5 {[%clk 0:00:20]} 24. Rg1 {[%clk 0:00:37]}  h6 {[%clk 0:00:20]} 25. f4 {[%clk 0:00:37]}  Nf5 {[%clk 0:00:19]} 26. Qe5 {[%clk 0:00:36]}  Bf6 {[%clk 0:00:19]} 27. Qxf6 {[%clk 0:00:36]}  Qc5 {[%clk 0:00:16]} 28. Nd4 {[%clk 0:00:33]}  Kh8 {[%clk 0:00:08]} 29. Qxf7 {[%clk 0:00:33]}  Qxd4 {[%clk 0:00:00]} 30. Rxd4 {[%clk 0:00:32]} 1-0


[Site "https://www.chess.com"]

[Event "Titled Tuesday Blitz July 4 Early 2023"]
[White "Rizzo, Tobias"]
[Black "Nakhbayeva, Guliskhan"]
[WhiteFideId "30942691"]
[BlackFideId "13704788"]
[WhiteElo "2475"]
[BlackElo "2199"]
[Result "1-0"]
[Round "2"]
[TimeControl "180+2"]
[Date "2023.07.04"]
[WhiteClock "0:00:38"]
[BlackClock "0:00:00"]
[Board "209"]

1. d4 {[%clk 0:03:00]}  e6 {[%clk 0:03:00]} 2. Bf4 {[%clk 0:03:00]}  d5 {[%clk 0:03:00]} 3. e3 {[%clk 0:02:59]}  Bd6 {[%clk 0:03:00]} 4. Bg3 {[%clk 0:03:00]}  Nf6 {[%clk 0:03:00]} 5. Nf3 {[%clk 0:03:00]}  O-O {[%clk 0:03:00]} 6. Bd3 {[%clk 0:02:59]}  c5 {[%clk 0:03:01]} 7. c3 {[%clk 0:02:58]}  Qc7 {[%clk 0:03:01]} 8. Ne5 {[%clk 0:02:54]}  Nbd7 {[%clk 0:02:57]} 9. f4 {[%clk 0:02:54]}  b6 {[%clk 0:02:36]} 10. Nd2 {[%clk 0:02:50]}  Bb7 {[%clk 0:02:37]} 11. O-O {[%clk 0:02:49]}  Bc8 {[%clk 0:02:38]} 12. Bh4 {[%clk 0:02:47]}  Bb7 {[%clk 0:02:39]} 13. g4 {[%clk 0:02:45]}  Ne4 {[%clk 0:02:30]} 14. Qc2 {[%clk 0:02:13]}  f6 {[%clk 0:01:55]} 15. Nxd7 {[%clk 0:02:07]}  Qxd7 {[%clk 0:01:45]} 16. Nxe4 {[%clk 0:02:06]}  dxe4 {[%clk 0:01:45]} 17. Bxe4 {[%clk 0:02:07]}  cxd4 {[%clk 0:01:44]} 18. exd4 {[%clk 0:02:03]}  f5 {[%clk 0:01:17]} 19. gxf5 {[%clk 0:01:55]}  exf5 {[%clk 0:01:15]} 20. Bxb7 {[%clk 0:01:54]}  Qxb7 {[%clk 0:01:15]} 21. Rae1 {[%clk 0:01:42]}  Qd5 {[%clk 0:00:55]} 22. Qb3 {[%clk 0:01:12]}  Qxb3 {[%clk 0:00:45]} 23. axb3 {[%clk 0:01:13]}  h6 {[%clk 0:00:27]} 24. Re6 {[%clk 0:01:09]}  Bc7 {[%clk 0:00:22]} 25. Bg3 {[%clk 0:00:54]}  Kh7 {[%clk 0:00:19]} 26. Re7 {[%clk 0:00:52]}  Bd6 {[%clk 0:00:16]} 27. Rd7 {[%clk 0:00:52]}  Rad8 {[%clk 0:00:14]} 28. Rxa7 {[%clk 0:00:52]}  Kh8 {[%clk 0:00:09]} 29. Re1 {[%clk 0:00:51]}  g5 {[%clk 0:00:08]} 30. fxg5 {[%clk 0:00:46]}  f4 {[%clk 0:00:07]} 31. Bh4 {[%clk 0:00:45]}  hxg5 {[%clk 0:00:06]} 32. Bxg5 {[%clk 0:00:45]}  Rg8 {[%clk 0:00:06]} 33. h4 {[%clk 0:00:43]}  Rg6 {[%clk 0:00:02]} 34. Kf2 {[%clk 0:00:41]}  Rf8 {[%clk 0:00:02]} 35. Kf3 {[%clk 0:00:39]}  Rf5 {[%clk 0:00:00]} 36. Kg4 {[%clk 0:00:38]} 1-0


[Site "https://www.chess.com"]

[Event "Titled Tuesday Blitz July 4 Early 2023"]
[White "Kiseleva, Arina"]
[Black "Sanhueza, Cristian"]
[WhiteFideId "4164989"]
[BlackFideId "116815"]
[WhiteElo "2193"]
[BlackElo "2473"]
[Result "1-0"]
[Round "2"]
[TimeControl "180+2"]
[Date "2023.07.04"]
[WhiteClock "0:00:05"]
[BlackClock "0:00:16"]
[Board "211"]

1. d4 {[%clk 0:03:00]}  Nf6 {[%clk 0:02:58]} 2. Nf3 {[%clk 0:03:01]}  g6 {[%clk 0:02:59]} 3. Nbd2 {[%clk 0:03:00]}  Bg7 {[%clk 0:02:59]} 4. e4 {[%clk 0:02:58]}  d6 {[%clk 0:02:59]} 5. Bd3 {[%clk 0:02:57]}  O-O {[%clk 0:03:00]} 6. O-O {[%clk 0:02:56]}  c5 {[%clk 0:03:00]} 7. c3 {[%clk 0:02:55]}  cxd4 {[%clk 0:03:00]} 8. cxd4 {[%clk 0:02:55]}  Nc6 {[%clk 0:03:00]} 9. Re1 {[%clk 0:02:40]}  e5 {[%clk 0:02:22]} 10. d5 {[%clk 0:02:32]}  Nd4 {[%clk 0:02:19]} 11. Nxd4 {[%clk 0:02:22]}  exd4 {[%clk 0:02:20]} 12. h3 {[%clk 0:01:54]}  Nd7 {[%clk 0:02:13]} 13. f4 {[%clk 0:01:52]}  Nc5 {[%clk 0:02:10]} 14. Nf3 {[%clk 0:01:49]}  Re8 {[%clk 0:02:06]} 15. b4 {[%clk 0:01:41]}  Nxd3 {[%clk 0:01:50]} 16. Qxd3 {[%clk 0:01:40]}  Qb6 {[%clk 0:01:50]} 17. a3 {[%clk 0:01:22]}  f5 {[%clk 0:01:46]} 18. e5 {[%clk 0:01:19]}  dxe5 {[%clk 0:01:47]} 19. fxe5 {[%clk 0:01:19]}  Bd7 {[%clk 0:01:39]} 20. Bb2 {[%clk 0:01:10]}  Bb5 {[%clk 0:01:27]} 21. Qxd4 {[%clk 0:01:10]}  Qa6 {[%clk 0:01:18]} 22. d6 {[%clk 0:01:03]}  Rad8 {[%clk 0:01:17]} 23. Rac1 {[%clk 0:00:56]}  Bc6 {[%clk 0:01:15]} 24. Qc4+ {[%clk 0:00:39]}  Qxc4 {[%clk 0:01:09]} 25. Rxc4 {[%clk 0:00:39]}  Bxf3 {[%clk 0:01:06]} 26. gxf3 {[%clk 0:00:39]}  Rxd6 {[%clk 0:01:07]} 27. exd6 {[%clk 0:00:27]}  Rxe1+ {[%clk 0:01:08]} 28. Kf2 {[%clk 0:00:27]}  Rd1 {[%clk 0:00:55]} 29. Bxg7 {[%clk 0:00:26]}  Kxg7 {[%clk 0:00:52]} 30. Rc7+ {[%clk 0:00:26]}  Kf6 {[%clk 0:00:49]} 31. d7 {[%clk 0:00:20]}  b5 {[%clk 0:00:40]} 32. Rxa7 {[%clk 0:00:20]}  Ke7 {[%clk 0:00:37]} 33. Rb7 {[%clk 0:00:14]}  Rd3 {[%clk 0:00:30]} 34. Rxb5 {[%clk 0:00:10]}  Kxd7 {[%clk 0:00:21]} 35. a4 {[%clk 0:00:07]}  f4 {[%clk 0:00:20]} 36. a5 {[%clk 0:00:06]}  Rd2+ {[%clk 0:00:20]} 37. Ke1 {[%clk 0:00:05]}  Ra2 {[%clk 0:00:21]} 38. Rb7+ {[%clk 0:00:04]}  Kc6 {[%clk 0:00:20]} 39. Rxh7 {[%clk 0:00:04]}  Ra4 {[%clk 0:00:20]} 40. Rh6 {[%clk 0:00:03]}  Rxb4 {[%clk 0:00:20]} 41. Rxg6+ {[%clk 0:00:03]}  Kd5 {[%clk 0:00:21]} 42. a6 {[%clk 0:00:04]}  Ra4 {[%clk 0:00:18]} 43. Ke2 {[%clk 0:00:03]}  Kd4 {[%clk 0:00:17]} 44. h4 {[%clk 0:00:03]}  Ra2+ {[%clk 0:00:17]} 45. Kd1 {[%clk 0:00:03]}  Ke3 {[%clk 0:00:17]} 46. h5 {[%clk 0:00:03]}  Kxf3 {[%clk 0:00:17]} 47. h6 {[%clk 0:00:03]}  Ke3 {[%clk 0:00:13]} 48. h7 {[%clk 0:00:03]}  Rh2 {[%clk 0:00:09]} 49. a7 {[%clk 0:00:02]}  f3 {[%clk 0:00:10]} 50. a8=Q {[%clk 0:00:02]}  f2 {[%clk 0:00:11]} 51. Qe8+ {[%clk 0:00:02]}  Kf3 {[%clk 0:00:11]} 52. Rf6+ {[%clk 0:00:02]}  Kg2 {[%clk 0:00:12]} 53. Qg8+ {[%clk 0:00:02]}  Kh1 {[%clk 0:00:12]} 54. Rxf2 {[%clk 0:00:02]}  Rxf2 {[%clk 0:00:13]} 55. h8=Q+ {[%clk 0:00:02]}  Rh2 {[%clk 0:00:13]} 56. Qxh2+ {[%clk 0:00:03]}  Kxh2 {[%clk 0:00:14]} 57. Qg4 {[%clk 0:00:03]}  Kh1 {[%clk 0:00:14]} 58. Ke2 {[%clk 0:00:04]}  Kh2 {[%clk 0:00:15]} 59. Kf2 {[%clk 0:00:04]}  Kh1 {[%clk 0:00:16]} 60. Qh4# {[%clk 0:00:05]} 1-0


[Site "https://www.chess.com"]